fUSD/lending_fUSD_20260321
["ID","MTS","AMOUNT","RATE_DAILY","PERIOD"]
[408676384,1774108932241,500.0,0.00012936,2]
[408676385,1774108932844,500.0,0.00012936,2]
[408676386,1774108933983,500.0,0.00012936,2]
[408676387,1774108934610,500.0,0.00012936,2]
[408676388,1774108935197,500.0,0.00012936,2]
[408676389,1774108935809,500.0,0.00012936,2]
[408676390,1774108936419,580.25074744,0.00012936,2]
[408676391,1774108938455,151.0,0.00012936,2]
[408676392,1774108939052,151.0,0.00012936,2]
[408676393,1774108948134,151.0,0.00012936,2]
[408676394,1774108948734,151.0,0.00012936,2]
[408676395,1774108949328,151.0,0.00012936,2]
[408676396,1774108952089,-151.0,0.00012936,2]
[408676397,1774108969763,-8702.80740675,0.00012936,2]
[408676398,1774108978928,-1306.91009325,0.00012936,2]
[408676399,1774108978964,-7386.1898135,0.00012936,2]
[408676400,1774109043459,10000.01,0.00012836,2]
[408676401,1774109043484,10000.01,0.00012836,2]
[408676402,1774109043509,10000.01,0.00012836,2]
[408676403,1774109043534,10000.01,0.00012836,2]
[408676404,1774109043562,10000.01,0.00012836,2]
[408676405,1774109043587,10000.01,0.00012836,2]
[408676406,1774109043612,10000.01,0.00012836,2]
[408676407,1774109043636,10000.01,0.00012836,2]
[408676408,1774109043659,10000.01,0.00012836,2]
[408676409,1774109050020,-10000.01,0.00012836,2]
[408676410,1774109063050,171.89,0.00011606,2]
[408676411,1774109101157,1076.0,0.00012835,2]
[408676412,1774109150127,-739.3493518,0.00012836,2]
[408676413,1774109229386,-209380.0327482,0.00012836,2]
[408676414,1774109229409,-193.63757919,0.00012836,2]
[408676415,1774109229434,-321.19943506,0.00012836,2]
[408676416,1774109232745,500.0,0.00012936,2]
[408676417,1774109233363,500.0,0.00012936,2]
[408676418,1774109233975,500.0,0.00012936,2]
[408676419,1774109234650,637.13609573,0.00012936,2]
[408676420,1774109239283,151.0,0.00012936,2]
[408676421,1774109239856,151.0,0.00012936,2]
[408676422,1774109240506,151.0,0.00012936,2]
[408676423,1774109241125,151.0,0.00012936,2]
[408676424,1774109241739,151.0,0.00012936,2]
[408676425,1774109242405,151.0,0.00012936,2]
[408676426,1774109243059,151.0,0.00012936,2]
[408676427,1774109243376,200.0,0.00012936,2]
[408676428,1774109243706,151.0,0.00012936,2]
[408676429,1774109244428,151.0,0.00012936,2]
[408676430,1774109245044,151.0,0.00012936,2]
[408676431,1774109247707,151.0,0.00012936,2]
[408676432,1774109247957,-4753.98390427,0.00012936,2]
[408676433,1774109247988,-10000.01,0.00012936,2]
[408676434,1774109248035,-10000.01,0.00012936,2]
[408676435,1774109248128,-10000.01,0.00012936,2]
[408676436,1774109248221,151.0,0.00012936,2]
[408676437,1774109248269,-9849.01,0.00012936,2]
[408676438,1774109248605,-10000.01,0.00012936,2]
[408676439,1774109248715,-10000.01,0.00012936,2]
[408676440,1774109248834,151.0,0.00012936,2]
[408676441,1774109248859,-9849.01,0.00012936,2]
[408676442,1774109248968,-10000.01,0.00012936,2]
[408676443,1774109249096,-10000.01,0.00012936,2]
[408676444,1774109249433,151.0,0.00012936,2]
[408676445,1774109250981,-151.0,0.00012936,2]
[408676446,1774109251010,-151.0,0.00012936,2]
[408676447,1774109251290,151.0,0.00012936,2]
[408676448,1774109251885,151.0,0.00012936,2]
[408676449,1774109252492,151.0,0.00012936,2]
[408676450,1774109253093,151.0,0.00012936,2]
[408676451,1774109253742,151.0,0.00012936,2]
[408676452,1774109254343,151.0,0.00012936,2]
[408676453,1774109254943,151.0,0.00012936,2]
[408676454,1774109255542,151.0,0.00012936,2]
[408676455,1774109256166,151.0,0.00012936,2]
[408676456,1774109256805,151.0,0.00012936,2]
[408676457,1774109266371,-3486.97031777,0.00012936,2]
[408676458,1774109266504,-1365.06936446,0.00012936,2]
[408676459,1774109266545,-1661.0,0.00012936,2]
[408676460,1774109266579,-500.0,0.00012936,2]
[408676461,1774109266614,-500.0,0.00012936,2]
[408676462,1774109266650,-500.0,0.00012936,2]
[408676463,1774109266684,-500.0,0.00012936,2]
[408676464,1774109266716,-500.0,0.00012936,2]
[408676465,1774109266751,-500.0,0.00012936,2]
[408676466,1774109266784,-178.01,0.00012936,2]
[408676467,1774109266840,-321.99,0.00012936,2]
[408676468,1774109266873,-500.0,0.00012936,2]
[408676469,1774109266906,-213.60668859,0.00012936,2]
[408676470,1774109266941,-250.0,0.00012953,2]
[408676471,1774109272287,7428.81662282,0.00012736,2]
[408676472,1774109272314,10000.01,0.00012736,2]
[408676473,1774109272339,10000.01,0.00012736,2]
[408676474,1774109272364,10000.01,0.00012736,2]
[408676475,1774109272389,10000.01,0.00012736,2]
[408676476,1774109272414,10000.01,0.00012736,2]
[408676477,1774109272439,10000.01,0.00012736,2]
[408676478,1774109272463,10000.01,0.00012736,2]
[408676479,1774109272487,10000.01,0.00012736,2]
[408676480,1774109272513,63785.22977718,0.00012736,2]
[408676481,1774109274829,200.0,0.000128,2]
[408676482,1774109275682,-321.19943503,0.00013274,2]
[408676483,1774109290989,-1008.36235732,0.00013336,2]
[408676486,1774109346962,636.14,0.00011507,2]
[408676487,1774109348084,-303.96232386,0.00013397,2]
[408676488,1774109348105,-150.0,0.00013458,2]
[408676489,1774109348126,-187.0,0.00013699,2]
[408676490,1774109348145,-500.0,0.000137,2]
[408676491,1774109348166,-574.51223028,0.000137,2]
[408676492,1774109348186,-500.0,0.000137,2]
[408676493,1774109348207,-500.0,0.000137,2]
[408676494,1774109348233,-500.0,0.000137,2]
[408676495,1774109348253,-172.757338,0.00013801,2]
[408676496,1774109348273,-150.0,0.00013837,2]
[408676497,1774109348293,-30255.90152922,0.00013838,2]
[408676498,1774109363575,10000.01,0.00012736,2]
[408676499,1774109363603,10000.01,0.00012736,2]
[408676500,1774109363633,10000.01,0.00012736,2]
[408676501,1774109363657,10000.01,0.00012736,2]
[408676502,1774109363682,10000.01,0.00012736,2]
[408676503,1774109363708,10000.01,0.00012736,2]
[408676504,1774109363738,8868.5723,0.00012736,2]
[408676505,1774109432248,-1200.0,0.00013837,2]
[408676506,1774109432259,-955.88949691,0.00013838,2]
[408676507,1774109432271,-1015.04698736,0.00013838,2]
[408676508,1774109432311,-50384.05110042,0.00013838,2]
[408676509,1774109432321,-193.0,0.00014119,2]
[408676510,1774109432330,-2500.0,0.00014119,2]
[408676511,1774109432341,-7966.15,0.00014248,2]
[408676512,1774109432353,-22903.57,0.00014248,2]
[408676513,1774109432363,-1000.0,0.00014248,2]
[408676514,1774109432372,-1000.0,0.00014248,2]
[408676515,1774109432381,-1000.0,0.00014248,2]
[408676516,1774109432390,-7679.62802703,0.00014407,2]
[408676517,1774109432400,-285.1,0.00014413,2]
[408676518,1774109432409,-175.8142694,0.0001445,2]
[408676519,1774109432418,-92286.5,0.00014507,2]
[408676520,1774109432427,-9999.99,0.00014507,2]
[408676521,1774109432437,-150.99,0.00014507,2]
[408676522,1774109432446,-9999.99,0.00014507,2]
[408676523,1774109432455,-9999.99,0.00014507,2]
[408676524,1774109432464,-1852.42,0.00014507,2]
[408676525,1774109432473,-200.0,0.00014567,2]
[408676526,1774109432482,-14672.1153351,0.00014627,2]
[408676527,1774109432492,-29500.03,0.00014668,2]
[408676528,1774109432501,-250.0,0.0001467,2]
[408676529,1774109432511,-7768.93496175,0.00014711,2]
[408676530,1774109432520,-286.59814687,0.00014711,2]
[408676531,1774109432529,-250.0,0.00014737,2]
[408676532,1774109432548,-1964.33716872,0.0001479,2]
[408676533,1774109432557,-378.53301702,0.00014796,2]
[408676534,1774109432567,-1002.62691089,0.00014796,2]
[408676536,1774109432577,-1500.0,0.00014796,2]
[408676537,1774109432586,-250.0,0.00014811,2]
[408676539,1774109432595,-250.0,0.00014811,2]
[408676541,1774109432604,-250.0,0.00014811,2]
[408676542,1774109432614,-250.0,0.00014811,2]
[408676543,1774109432623,-250.0,0.00014811,2]
[408676544,1774109432633,-250.0,0.00014811,2]
[408676545,1774109432645,-250.0,0.00014811,2]
[408676546,1774109432654,-250.0,0.00014811,2]
[408676547,1774109432664,-250.0,0.00014811,2]
[408676548,1774109432674,-250.0,0.00014811,2]
[408676549,1774109432683,-250.0,0.00014811,2]
[408676550,1774109432692,-250.0,0.00014811,2]
[408676551,1774109432701,-250.0,0.00014811,2]
[408676552,1774109432711,-500.0,0.00014811,2]
[408676553,1774109432720,-5287.31936849,0.00014811,2]
[408676554,1774109432729,-280.93336224,0.00014811,2]
[408676555,1774109432738,-500.0,0.00014811,2]
[408676556,1774109432747,-500.0,0.00014811,2]
[408676557,1774109432757,-500.0,0.00014811,2]
[408676558,1774109432766,-500.0,0.00014811,2]
[408676559,1774109432775,-500.0,0.00014811,2]
[408676560,1774109432784,-500.0,0.00014811,2]
[408676561,1774109432793,-500.0,0.00014811,2]
[408676562,1774109432802,-500.0,0.00014811,2]
[408676563,1774109432811,-500.0,0.00014811,2]
[408676564,1774109432820,-500.0,0.00014811,2]
[408676565,1774109432829,-250.0,0.00014811,2]
[408676566,1774109432838,-500.0,0.00014811,2]
[408676567,1774109432847,-250.0,0.00014811,2]
[408676568,1774109432856,-500.0,0.00014811,2]
[408676569,1774109432866,-500.0,0.00014811,2]
[408676570,1774109432880,-250.0,0.00014811,2]
[408676571,1774109432890,-500.0,0.00014811,2]
[408676572,1774109432899,-500.0,0.00014811,2]
[408676573,1774109432908,-250.0,0.00014811,2]
[408676574,1774109432918,-500.0,0.00014811,2]
[408676575,1774109432927,-500.0,0.00014811,2]
[408676576,1774109432936,-250.0,0.00014811,2]
[408676577,1774109432947,-500.0,0.00014811,2]
[408676579,1774109432956,-516.47340423,0.00014811,2]
[408676581,1774109432966,-250.0,0.00014811,2]
[408676583,1774109432976,-250.0,0.00014811,2]
[408676584,1774109432986,-500.0,0.00014811,2]
[408676585,1774109432996,-250.0,0.00014811,2]
[408676586,1774109433006,-250.0,0.00014811,2]
[408676587,1774109433016,-500.0,0.00014811,2]
[408676588,1774109433026,-250.0,0.00014811,2]
[408676589,1774109433037,-250.0,0.00014811,2]
[408676590,1774109433047,-500.0,0.00014811,2]
[408676591,1774109433057,-250.0,0.00014811,2]
[408676592,1774109433068,-250.0,0.00014811,2]
[408676593,1774109433078,-250.0,0.00014811,2]
[408676594,1774109433088,-268.3661478,0.00014811,2]
[408676595,1774109433098,-250.0,0.00014811,2]
[408676596,1774109433113,-260.83847575,0.00014811,2]
[408676597,1774109433123,-250.0,0.00014811,2]
[408676598,1774109433133,-250.0,0.00014811,2]
[408676599,1774109433143,-250.0,0.00014811,2]
[408676600,1774109433152,-250.0,0.00014811,2]
[408676601,1774109433162,-335.32119913,0.00014811,2]
[408676602,1774109433172,-151.0,0.00014811,2]
[408676603,1774109433183,-500.0,0.00014811,2]
[408676604,1774109433192,-2770.37,0.00014828,2]
[408676605,1774109433203,-7768.93496175,0.00014843,2]
[408676606,1774109433212,-3472.79,0.00014849,2]
[408676607,1774109433222,-286.59814683,0.00014881,2]
[408676608,1774109433232,-15295.7052031,0.00014936,2]
[408676609,1774109433242,-7768.93496175,0.00014975,2]
[408676610,1774109433252,-250.0,0.00015,2]
[408676611,1774109433263,-289.0,0.00015049,2]
[408676612,1774109433273,-286.59814683,0.00015051,2]
[408676613,1774109433283,-500.0,0.00015085,2]
[408676614,1774109433293,-7768.93496175,0.00015107,2]
[408676615,1774109433303,-289.0,0.00015125,2]
[408676616,1774109433315,-289.0,0.00015136,2]
[408676617,1774109433325,-250.0,0.00015221,2]
[408676618,1774109433335,-7768.93496175,0.00015239,2]
[408676619,1774109433344,-413.50946979,0.00015259,2]
[408676620,1774109433354,-350.0,0.00015266,2]
[408676621,1774109433363,-1474.43830873,0.00015344,2]
[408676622,1774109433373,-500.0,0.0001536,2]
[408676623,1774109433383,-500.0,0.0001536,2]
[408676624,1774109433393,-500.0,0.0001536,2]
[408676625,1774109433402,-500.0,0.0001536,2]
[408676626,1774109433412,-500.0,0.0001536,2]
[408676627,1774109433421,-500.0,0.0001536,2]
[408676628,1774109433431,-500.0,0.0001536,2]
[408676629,1774109433440,-504.87563133,0.0001536,2]
[408676630,1774109433450,-500.0,0.0001536,2]
[408676631,1774109433460,-500.0,0.0001536,2]
[408676632,1774109433470,-500.0,0.0001536,2]
[408676633,1774109433480,-456.49769709,0.0001536,2]
[408676634,1774109433723,-446.0,0.0001536,2]
[408676635,1774109433733,-446.0,0.0001536,2]
[408676636,1774109433742,-446.0,0.0001536,2]
[408676637,1774109433752,-446.0,0.0001536,2]
[408676638,1774109433761,-446.0,0.0001536,2]
[408676639,1774109433770,-446.0,0.0001536,2]
[408676640,1774109433780,-446.0,0.0001536,2]
[408676641,1774109433790,-446.0,0.0001536,2]
[408676642,1774109433799,-446.0,0.0001536,2]
[408676643,1774109433808,-446.0,0.0001536,2]
[408676644,1774109433818,-446.0,0.0001536,2]
[408676645,1774109433828,-446.0,0.0001536,2]
[408676646,1774109433839,-446.0,0.0001536,2]
[408676647,1774109433849,-446.0,0.0001536,2]
[408676648,1774109433859,-446.0,0.0001536,2]
[408676649,1774109433868,-446.0,0.0001536,2]
[408676650,1774109433878,-446.0,0.0001536,2]
[408676651,1774109433887,-446.0,0.0001536,2]
[408676652,1774109433897,-446.0,0.0001536,2]
[408676653,1774109433906,-446.0,0.0001536,2]
[408676654,1774109433915,-446.0,0.0001536,2]
[408676655,1774109433924,-446.0,0.0001536,2]
[408676656,1774109433934,-446.0,0.0001536,2]
[408676657,1774109433944,-455.95065984,0.0001536,2]
[408676658,1774109433954,-500.0,0.0001536,2]
[408676659,1774109433963,-500.0,0.0001536,2]
[408676660,1774109433972,-474.69033023,0.0001536,2]
[408676661,1774109433983,-500.0,0.0001536,2]
[408676662,1774109433992,-500.0,0.0001536,2]
[408676663,1774109434002,-500.0,0.0001536,2]
[408676664,1774109434011,-500.0,0.0001536,2]
[408676665,1774109434021,-208.50828894,0.0001536,2]
[408676666,1774109434030,-7768.93496175,0.00015372,2]
[408676667,1774109434039,-289.0,0.00015445,2]
[408676668,1774109434049,-16288.75614872,0.00015465,2]
[408676669,1774109434059,-350.0,0.00015502,2]
[408676670,1774109434068,-7768.93496175,0.00015504,2]
[408676671,1774109434077,-4406.68206375,0.0001553,2]
[408676672,1774109434091,-593.31793625,0.0001553,2]
[408676673,1774109434101,-236.41810785,0.00015547,2]
[408676674,1774109434110,-596.53401514,0.00015547,2]
[408676675,1774109434119,-2141.15479101,0.00015548,2]
[408676676,1774109434130,-1098.84520899,0.00015548,2]
[408676677,1774109434140,-10362.33304213,0.00015548,2]
[408676678,1774109434151,-420.0,0.00015548,2]
[408676679,1774109437374,10000.01,0.00012736,2]
[408676680,1774109437403,10000.01,0.00012736,2]
[408676681,1774109437430,10000.01,0.00012736,2]
[408676682,1774109437460,40000.04,0.00012736,2]
[408676684,1774109438862,-7679.62802699,0.00014573,2]
[408676685,1774109438873,-7679.62802699,0.00014739,2]
[408676686,1774109438883,-286.59814683,0.00015221,2]
[408676687,1774109438893,-286.59814683,0.0001539,2]
[408676688,1774109438903,-16447.35695787,0.00015548,2]
[408676689,1774109438913,-350.0,0.00015577,2]
[408676690,1774109438923,-289.0,0.00015582,2]
[408676691,1774109438934,-289.0,0.00015592,2]
[408676692,1774109438943,-289.0,0.00015612,2]
[408676693,1774109438952,-35403.19069445,0.00015617,2]
[408676694,1774109439011,-310.35548929,0.00015617,2]
[408676696,1774109440550,-12464.70175708,0.00015617,2]
[408676698,1774109440559,-160.0,0.00015629,2]
[408676699,1774109440568,-979.16666667,0.00015629,2]
[408676700,1774109440578,-7768.93496175,0.00015636,2]
[408676702,1774109440589,-330.658346,0.00015662,7]
[408676704,1774109440598,-241.684168,0.00015662,7]
[408676706,1774109440608,-193.347333,0.00015662,7]
[408676707,1774109440618,-1044.0,0.00015694,2]
[408676708,1774109440627,-1347.443,0.00015694,2]
[408676709,1774109440641,-3513.0,0.00015694,2]
[408676710,1774109440651,-1261.0,0.00015694,2]
[408676711,1774109440660,-150.0,0.00015694,2]
[408676712,1774109440669,-1215.0,0.00015694,2]
[408676713,1774109440679,-926.566,0.00015694,2]
[408676714,1774109440688,-225.696003,0.00015697,2]
[408676715,1774109440698,-224.0,0.00015697,2]
[408676716,1774109440708,-289.0,0.00015703,2]
[408676717,1774109440717,-2497.431,0.00015706,2]
[408676718,1774109440728,-240.445,0.00015706,2]
[408676719,1774109440738,-150.0,0.00015738,2]
[408676720,1774109440748,-7768.93496175,0.00015768,2]
[408676721,1774109440759,-1000.0,0.00015771,2]
[408676722,1774109440769,-150.0,0.00015776,2]
[408676723,1774109440780,-2466.0,0.00015784,2]
[408676724,1774109440791,-6007.0,0.00015784,2]
[408676725,1774109440800,-1078.35161779,0.00015785,2]
[408676726,1774109440810,-1000.0,0.00015796,2]
[408676727,1774109440820,-168.0,0.00015797,2]
[408676728,1774109440829,-289.0,0.00015808,2]
[408676729,1774109440839,-150.0,0.00015815,2]
[408676730,1774109440848,-150.0,0.00015819,2]
[408676731,1774109440857,-1000.0,0.00015823,2]
[408676732,1774109440867,-562.85,0.00015825,2]
[408676733,1774109440876,-1000.0,0.00015832,2]
[408676734,1774109440885,-6442.88514624,0.0001584,2]
[408676735,1774109440895,-74987.4489713,0.0001584,2]
[408676736,1774109440904,-157.56924,0.0001584,2]
[408676737,1774109440914,-157.56924,0.0001584,2]
[408676738,1774109440923,-150.0,0.00015841,2]
[408676739,1774109440933,-150.0,0.00015841,14]
[408676740,1774109440942,-153.7845791,0.00015855,5]
[408676741,1774109440952,-289.0,0.00015858,2]
[408676742,1774109440961,-700.0,0.00015858,2]
[408676743,1774109440971,-1000.0,0.00015872,2]
[408676744,1774109440980,-350.0,0.00015876,2]
[408676745,1774109440990,-150.0,0.00015884,2]
[408676746,1774109440999,-2000.0,0.0001589,2]
[408676747,1774109441009,-1059.2752,0.000159,2]
[408676748,1774109441019,-3517.815,0.000159,2]
[408676749,1774109441029,-1178.52133832,0.000159,2]
[408676750,1774109441039,-878.50427928,0.000159,2]
[408676751,1774109441049,-7768.93496175,0.000159,2]
[408676752,1774109441060,-631.4293198,0.000159,2]
[408676753,1774109441070,-2525.89218,0.000159,2]
[408676754,1774109441080,-1000.0,0.00015931,2]
[408676755,1774109441089,-289.0,0.00015943,2]
[408676756,1774109441098,-150.0,0.00015951,2]
[408676757,1774109441108,-1962.81419762,0.00015956,2]
[408676758,1774109441118,-1000.0,0.0001596,2]
[408676759,1774109441128,-150.0,0.00015961,2]
[408676760,1774109441138,-6945.0,0.00015973,2]
[408676761,1774109441147,-160.048,0.00015973,2]
[408676762,1774109441156,-500.0,0.00015973,2]
[408676763,1774109441166,-500.0,0.00015973,2]
[408676764,1774109441176,-500.0,0.00015973,2]
[408676765,1774109441185,-333.74740353,0.00015973,2]
[408676766,1774109441195,-504.03256925,0.00015973,2]
[408676767,1774109441204,-429.3358411,0.00015973,2]
[408676768,1774109441214,-310.27363011,0.00015973,2]
[408676769,1774109441224,-457.24188603,0.00015973,2]
[408676770,1774109441234,-167.44290588,0.00015973,2]
[408676771,1774109441243,-502.08297344,0.00015973,2]
[408676772,1774109441253,-500.0,0.00015973,2]
[408676773,1774109441262,-500.0,0.00015973,2]
[408676774,1774109441271,-500.0,0.00015973,2]
[408676775,1774109441280,-500.6537405,0.00015973,2]
[408676776,1774109441289,-500.0,0.00015973,2]
[408676777,1774109441299,-289.0,0.00015976,2]
[408676778,1774109441309,-3382.0,0.00015977,5]
[408676779,1774109441318,-150.0,0.00015977,2]
[408676780,1774109441328,-150.0,0.00015978,2]
[408676781,1774109441338,-6028.0679386,0.00015982,2]
[408676782,1774109441347,-73159.2336072,0.00015982,2]
[408676783,1774109441356,-565.3966689,0.00015982,2]
[408676784,1774109441366,-888.3478927,0.00015982,2]
[408676785,1774109441375,-17666.1910618,0.00015982,2]
[408676786,1774109441385,-288.32393429,0.0001599,2]
[408676787,1774109441395,-288.32393429,0.0001599,2]
[408676788,1774109441404,-288.32393429,0.0001599,2]
[408676789,1774109441414,-1000.0,0.00015991,2]
[408676790,1774109441423,-151.0,0.00015997,2]
[408676791,1774109441432,-161.206,0.00015999,2]
[408676792,1774109441442,-187.04841564,0.00015999,2]
[408676793,1774109441451,-413.83535177,0.00015999,2]
[408676794,1774109441461,-500.0,0.00015999,2]
[408676795,1774109441471,-500.0,0.00015999,2]
[408676796,1774109441480,-500.0,0.00015999,2]
[408676797,1774109441490,-500.0,0.00015999,2]
[408676798,1774109441500,-500.0,0.00015999,2]
[408676799,1774109441509,-299.68792232,0.00015999,2]
[408676800,1774109441520,-500.0,0.00015999,2]
[408676801,1774109441529,-500.0,0.00015999,2]
[408676802,1774109441539,-500.0,0.00015999,2]
[408676803,1774109441548,-500.0,0.00015999,2]
[408676804,1774109441558,-500.0,0.00015999,2]
[408676805,1774109441568,-465.82717598,0.00015999,2]
[408676806,1774109441577,-500.0,0.00015999,2]
[408676807,1774109441587,-500.0,0.00015999,2]
[408676808,1774109441596,-500.0,0.00015999,2]
[408676809,1774109441606,-4228.0,0.00016,5]
[408676810,1774109441615,-327270.80234794,0.00016,2]
[408676811,1774109441633,-276.871998,0.000159,2]
[408676812,1774109441651,-369.0,0.00015784,2]
[408676813,1774109441663,-45.0,0.00015784,2]
[408676814,1774109441673,-71.2870783,0.000159,2]
[408676815,1774109441682,-544.05170684,0.00016,2]
[408676816,1774109441694,-3450.0,0.00016,2]
[408676818,1774109446527,-1302.97179547,0.00014905,2]
[408676819,1774109446786,-89.37141727,0.00014905,2]
[408676820,1774109446798,-6287.28481425,0.00014905,2]
[408676821,1774109446808,-286.59814683,0.0001556,2]
[408676822,1774109446817,-1101.97384734,0.00015679,2]
[408676823,1774109446827,-64066.34929303,0.00016,2]
[408676903,1774109447617,-1244.05815079,0.00015071,2]
[408676906,1774109447628,-6304.12939191,0.00015071,2]
[408676917,1774109447730,-82.1499281,0.00015071,2]
[408679484,1774110003381,2192.07,7.112e-05,2]
[408679485,1774110003583,2192.07,7.487e-05,2]
[408679486,1774110003782,2192.07,7.861e-05,2]
[408679487,1774110003978,2192.07,8.235e-05,2]
[408679488,1774110004181,1231.73,8.61e-05,2]
[408679489,1774110004207,960.34,8.61e-05,2]
[408679490,1774110004383,2192.07,8.984e-05,2]
[408679491,1774110004585,2192.07,9.358e-05,2]
[408679492,1774110004785,2192.07,9.733e-05,2]
[408679493,1774110004984,2192.07,0.00010107,2]
[408679494,1774110005178,271.39,0.00010481,2]
[408679495,1774110005202,1920.68,0.00010481,2]
[408679496,1774110005380,2192.07,0.00010856,2]
[408679497,1774110005572,2192.07,0.0001123,2]
[408679498,1774110005886,2192.07,0.00011604,2]
[408679499,1774110005981,2192.07,0.00011979,2]
[408679500,1774110006184,2192.07,0.00012353,2]
[408679501,1774110006389,2192.07,0.00012727,2]
[408679503,1774110292024,500.0,0.00013002,2]
[408679504,1774110294671,5364.46,0.00012859,2]
[408679505,1774110343386,4135.55,0.00012801,2]
[408679506,1774110343411,10000.01,0.00012801,2]
[408679507,1774110343435,10000.01,0.00012801,2]
[408679508,1774110343458,10000.01,0.00012801,2]
[408679509,1774110343487,2186.99,0.00012801,2]
[408679511,1774110404306,150.0,0.00012758,2]
[408679512,1774110434131,-620.80693541,0.00012903,2]
[408679513,1774110439949,-607.68306459,0.00012903,2]
[408679515,1774110479395,241.73,0.00012762,2]
[408679516,1774110509653,309.43671847,0.000125,2]
[408679517,1774110541756,1600.0,0.00012812,2]
[408679518,1774110553155,-713.508696,0.00013102,2]
[408679519,1774110554887,2000.0,0.00012789,2]
[408679520,1774110564615,-234.87,0.00012952,2]
[408679521,1774110620354,500.52,0.00012762,2]
[408679527,1774110631441,-994.88176241,0.00013102,2]
[408679529,1774110636172,-483.67954159,0.00013102,2]
[408679530,1774110636182,-194.24944797,0.00013104,2]
[408679532,1774110636192,-421.40930356,0.00013107,2]
[408679533,1774110636201,-150.0,0.00013107,14]
[408679534,1774110636211,-5000.0,0.00013125,2]
[408679535,1774110636221,-250.0,0.00013148,2]
[408679536,1774110636230,-300.0,0.00013296,2]
[408679537,1774110636239,-300.0,0.00013296,2]
[408679538,1774110636249,-1200.0,0.00013296,2]
[408679539,1774110636258,-300.0,0.00013296,2]
[408679540,1774110636268,-5000.0,0.00013297,2]
[408679541,1774110636277,-5000.0,0.00013297,2]
[408679542,1774110636287,-241.73,0.00013471,2]
[408679543,1774110636296,-2192.07,0.00013476,2]
[408679544,1774110636305,-56949.55949614,0.0001352,2]
[408679545,1774110636319,-1656.07504755,0.0001352,2]
[408679547,1774110637732,-4110.49558338,0.0001352,2]
[408679548,1774110637744,-1722.30236389,0.0001352,2]
[408679549,1774110637758,-1855.85595096,0.0001352,2]
[408679555,1774110640000,-1676740.30543374,0.0001352,2]
[408679556,1774110640116,-68.97854856,0.0001352,2]
[408679557,1774110640128,-756896.42757578,0.0001352,2]
[408679558,1774110640138,-10000.0,0.0001362,2]
[408679559,1774110640148,-1000.0,0.00013637,2]
[408679560,1774110640159,-150.0,0.00013637,2]
[408679561,1774110640168,-9999.99,0.00013638,2]
[408679562,1774110640178,-150.99,0.00013638,2]
[408679563,1774110640188,-150.99,0.00013638,2]
[408679564,1774110640198,-999.99,0.00013638,2]
[408679565,1774110640207,-3294.63,0.00013638,2]
[408679566,1774110640217,-9999.99,0.00013638,2]
[408679567,1774110640226,-9999.99,0.00013638,2]
[408679568,1774110640236,-11426.56032189,0.00013638,2]
[408679569,1774110640245,-2585.12734016,0.00013638,2]
[408679570,1774110640255,-1000.0,0.00013638,2]
[408679571,1774110640265,-2191.92962496,0.00013638,2]